[Event "Early-Titled-Tuesday-Blitz-June-18-2024"]
[Site "Chess.com"]
[Date "2024.06.18"]
[Round "3"]
[White "luckyswitchback"]
[Black "rockstar0902"]
[Result "1-0"]
[WhiteElo "2841"]
[BlackElo "2616"]
[TimeControl "180+1"]
[EndTime "8:31:51 PDT"]
[Termination "luckyswitchback won by checkmate"]

1. e4 {[%clk 0:02:56.8]} 1... e6 {[%clk 0:02:59.4]} 2. d4 {[%clk 0:02:56.8]}
2... d5 {[%clk 0:03:00.3]} 3. Nd2 {[%clk 0:02:56.8]} 3... c5 {[%clk 0:03:00.1]}
4. Ngf3 {[%clk 0:02:56.8]} 4... Nc6 {[%clk 0:02:59.6]} 5. exd5 {[%clk
0:02:56.3]} 5... exd5 {[%clk 0:03:00.5]} 6. Bb5 {[%clk 0:02:56.4]} 6... cxd4
{[%clk 0:03:00.1]} 7. O-O {[%clk 0:02:54.7]} 7... Bd6 {[%clk 0:02:59.4]} 8. Nxd4
{[%clk 0:02:47.6]} 8... Ne7 {[%clk 0:02:59.2]} 9. N2f3 {[%clk 0:02:33.5]} 9...
O-O {[%clk 0:02:58.2]} 10. h3 {[%clk 0:02:33.6]} 10... Bd7 {[%clk 0:02:53.9]}
11. c3 {[%clk 0:02:30.4]} 11... Ng6 {[%clk 0:02:45.6]} 12. Bd3 {[%clk
0:02:25.4]} 12... Nf4 {[%clk 0:02:32.5]} 13. Bxf4 {[%clk 0:02:14.4]} 13... Bxf4
{[%clk 0:02:33.4]} 14. Re1 {[%clk 0:02:09.5]} 14... Qf6 {[%clk 0:02:24.6]} 15.
Bf1 {[%clk 0:01:57.5]} 15... Rad8 {[%clk 0:02:21.2]} 16. Qb3 {[%clk 0:01:49.7]}
16... Bc8 {[%clk 0:02:21.1]} 17. Rad1 {[%clk 0:01:46.4]} 17... Bb8 {[%clk
0:02:15]} 18. Nxc6 {[%clk 0:01:41.8]} 18... Qxc6 {[%clk 0:02:14.7]} 19. g3
{[%clk 0:01:32.3]} 19... Be6 {[%clk 0:01:44.5]} 20. Nd4 {[%clk 0:01:28.1]} 20...
Qd7 {[%clk 0:01:42.3]} 21. h4 {[%clk 0:01:08]} 21... Bg4 {[%clk 0:01:40.6]} 22.
Be2 {[%clk 0:01:03.8]} 22... a6 {[%clk 0:01:25.7]} 23. Qc2 {[%clk 0:00:57.5]}
23... Ba7 {[%clk 0:01:22.3]} 24. Bxg4 {[%clk 0:00:57.4]} 24... Qxg4 {[%clk
0:01:23.2]} 25. Qf5 {[%clk 0:00:57.9]} 25... Qg6 {[%clk 0:01:15]} 26. Qxg6
{[%clk 0:00:55.9]} 26... hxg6 {[%clk 0:01:15.9]} 27. Kg2 {[%clk 0:00:51.2]}
27... Rfe8 {[%clk 0:01:15.5]} 28. Rxe8+ {[%clk 0:00:47.8]} 28... Rxe8 {[%clk
0:01:16.4]} 29. Kf3 {[%clk 0:00:48.4]} 29... Kf8 {[%clk 0:01:14.2]} 30. Ne2
{[%clk 0:00:46.3]} 30... Rd8 {[%clk 0:01:09.5]} 31. a4 {[%clk 0:00:35.8]} 31...
a5 {[%clk 0:01:08]} 32. Nd4 {[%clk 0:00:19.4]} 32... Ke7 {[%clk 0:01:01.7]} 33.
Rd3 {[%clk 0:00:19.5]} 33... Bb6 {[%clk 0:00:58.1]} 34. Nb5 {[%clk 0:00:18.7]}
34... Ke6 {[%clk 0:00:56.8]} 35. Nd4+ {[%clk 0:00:18.8]} 35... Kf6 {[%clk
0:00:56.8]} 36. Ne2 {[%clk 0:00:18.6]} 36... Ke5 {[%clk 0:00:53.8]} 37. Nd4
{[%clk 0:00:17.8]} 37... Rd6 {[%clk 0:00:47.7]} 38. Re3+ {[%clk 0:00:17.3]}
38... Kf6 {[%clk 0:00:47.7]} 39. Rd3 {[%clk 0:00:17.6]} 39... Rd8 {[%clk
0:00:45]} 40. Rd2 {[%clk 0:00:18.1]} 40... Rc8 {[%clk 0:00:43.9]} 41. Nb5 {[%clk
0:00:15.4]} 41... Rd8 {[%clk 0:00:40.1]} 42. Ke2 {[%clk 0:00:15.7]} 42... Ke5
{[%clk 0:00:39.1]} 43. Kd3 {[%clk 0:00:16.1]} 43... Kf5 {[%clk 0:00:36.2]} 44.
Re2 {[%clk 0:00:15.8]} 44... Kg4 {[%clk 0:00:36.4]} 45. Re7 {[%clk 0:00:12.7]}
45... Bxf2 {[%clk 0:00:36.4]} 46. Rxf7 {[%clk 0:00:12.3]} 46... Bxg3 {[%clk
0:00:36.1]} 47. Rxg7 {[%clk 0:00:12.8]} 47... Kh5 {[%clk 0:00:34.8]} 48. Rh7+
{[%clk 0:00:11.9]} 48... Kg4 {[%clk 0:00:34.3]} 49. Rg7 {[%clk 0:00:12.3]} 49...
Kh5 {[%clk 0:00:34.2]} 50. Rxb7 {[%clk 0:00:11.2]} 50... Bxh4 {[%clk 0:00:33.2]}
51. Nd4 {[%clk 0:00:11.6]} 51... Bf2 {[%clk 0:00:28.2]} 52. Rh7+ {[%clk
0:00:11.5]} 52... Kg4 {[%clk 0:00:27.8]} 53. Rg7 {[%clk 0:00:11.4]} 53... Rd6
{[%clk 0:00:27.6]} 54. Nb5 {[%clk 0:00:09.4]} 54... Rf6 {[%clk 0:00:27]} 55. Nc7
{[%clk 0:00:08.7]} 55... Rd6 {[%clk 0:00:20.5]} 56. b4 {[%clk 0:00:08.7]} 56...
axb4 {[%clk 0:00:17]} 57. cxb4 {[%clk 0:00:09.6]} 57... g5 {[%clk 0:00:16.5]}
58. a5 {[%clk 0:00:08.3]} 58... d4 {[%clk 0:00:16.1]} 59. a6 {[%clk 0:00:06.2]}
59... Rc6 {[%clk 0:00:14.9]} 60. a7 {[%clk 0:00:05.9]} 60... Rc3+ {[%clk
0:00:15.5]} 61. Ke4 {[%clk 0:00:05.5]} 61... Re3+ {[%clk 0:00:14.9]} 62. Kd5
{[%clk 0:00:05.7]} 62... Ra3 {[%clk 0:00:13.2]} 63. a8=Q {[%clk 0:00:05.9]}
63... Rxa8 {[%clk 0:00:13.3]} 64. Nxa8 {[%clk 0:00:06.8]} 64... d3 {[%clk
0:00:14.1]} 65. Ke4 {[%clk 0:00:06.4]} 65... d2 {[%clk 0:00:14.5]} 66. Rd7
{[%clk 0:00:06.8]} 66... Be1 {[%clk 0:00:15.2]} 67. Nb6 {[%clk 0:00:06.4]} 67...
Kg3 {[%clk 0:00:15.9]} 68. Nc4 {[%clk 0:00:06.8]} 68... g4 {[%clk 0:00:16.1]}
69. Nxd2 {[%clk 0:00:07.2]} 69... Kh2 {[%clk 0:00:16.8]} 70. Nf1+ {[%clk
0:00:07]} 70... Kg1 {[%clk 0:00:16.3]} 71. Rf7 {[%clk 0:00:05.4]} 71... Bxb4
{[%clk 0:00:15.6]} 72. Ne3 {[%clk 0:00:04.6]} 72... g3 {[%clk 0:00:15.5]} 73.
Rg7 {[%clk 0:00:05.1]} 73... Be1 {[%clk 0:00:13.6]} 74. Kf3 {[%clk 0:00:05]}
74... Bf2 {[%clk 0:00:13.8]} 75. Ng2 {[%clk 0:00:05]} 75... Kf1 {[%clk
0:00:13.2]} 76. Rb7 {[%clk 0:00:04.1]} 76... Kg1 {[%clk 0:00:13.4]} 77. Rb1+
{[%clk 0:00:04.2]} 77... Kh2 {[%clk 0:00:14]} 78. Rd1 {[%clk 0:00:04.1]} 78...
Bb6 {[%clk 0:00:13.6]} 79. Rd5 {[%clk 0:00:03.2]} 79... Bf2 {[%clk 0:00:13.2]}
80. Rh5+ {[%clk 0:00:03.4]} 80... Kg1 {[%clk 0:00:13.4]} 81. Rh7 {[%clk
0:00:03.7]} 81... Bb6 {[%clk 0:00:08.8]} 82. Kxg3 {[%clk 0:00:04.1]} 82... Bf2+
{[%clk 0:00:08]} 83. Kf3 {[%clk 0:00:04.5]} 83... Bd4 {[%clk 0:00:08.9]} 84. Nf4
{[%clk 0:00:04.8]} 84... Bf2 {[%clk 0:00:09.1]} 85. Ne2+ {[%clk 0:00:05.1]}
85... Kf1 {[%clk 0:00:10]} 86. Rh1+ {[%clk 0:00:05.6]} 86... Bg1 {[%clk
0:00:10.4]} 87. Rxg1# {[%clk 0:00:06.5]} 1-0

[Event "Early-Titled-Tuesday-Blitz-June-18-2024"]
[Site "Chess.com"]
[Date "2024.06.18"]
[Round "3"]
[White "LeRoidesChampions"]
[Black "Kirill_Klukin"]
[Result "1/2-1/2"]
[WhiteElo "2675"]
[BlackElo "2876"]
[TimeControl "180+1"]
[EndTime "8:32:20 PDT"]
[Termination "Game drawn by agreement"]

1. e4 {[%clk 0:03:00.4]} 1... c5 {[%clk 0:03:00.3]} 2. Nf3 {[%clk 0:03:00.3]}
2... Nc6 {[%clk 0:03:01.1]} 3. b4 {[%clk 0:02:59.5]} 3... d6 {[%clk 0:02:59.4]}
4. b5 {[%clk 0:02:59]} 4... Nd4 {[%clk 0:02:59.1]} 5. Bb2 {[%clk 0:02:55.2]}
5... e5 {[%clk 0:02:49.2]} 6. Bc4 {[%clk 0:02:54.3]} 6... Bg4 {[%clk 0:02:46]}
7. Nc3 {[%clk 0:02:37.4]} 7... Be7 {[%clk 0:02:38.6]} 8. Nd5 {[%clk 0:02:33.7]}
8... Nf6 {[%clk 0:02:35.7]} 9. Bxd4 {[%clk 0:02:28.4]} 9... cxd4 {[%clk
0:02:30.5]} 10. Nxf6+ {[%clk 0:02:28.4]} 10... Bxf6 {[%clk 0:02:30.5]} 11. h3
{[%clk 0:02:28.2]} 11... Bh5 {[%clk 0:02:19.5]} 12. d3 {[%clk 0:02:28.5]} 12...
Rc8 {[%clk 0:02:16.4]} 13. g4 {[%clk 0:02:25.4]} 13... Bg6 {[%clk 0:02:16]} 14.
h4 {[%clk 0:01:59]} 14... Rxc4 {[%clk 0:02:09.5]} 15. dxc4 {[%clk 0:01:57.7]}
15... Bxe4 {[%clk 0:02:10.2]} 16. g5 {[%clk 0:01:57.5]} 16... Qa5+ {[%clk
0:02:06.4]} 17. Kf1 {[%clk 0:01:56.5]} 17... Qc3 {[%clk 0:01:59.9]} 18. Rh3
{[%clk 0:01:19.7]} 18... Bxc2 {[%clk 0:01:44]} 19. Qc1 {[%clk 0:01:10.9]} 19...
Bd8 {[%clk 0:01:32.5]} 20. Rg3 {[%clk 0:01:07.3]} 20... Qxc4+ {[%clk 0:01:27.1]}
21. Kg1 {[%clk 0:01:06.8]} 21... d3 {[%clk 0:01:25.7]} 22. Ne1 {[%clk
0:01:00.8]} 22... O-O {[%clk 0:01:17.9]} 23. Qd2 {[%clk 0:00:56.4]} 23... Ba5
{[%clk 0:01:09.6]} 24. Qxa5 {[%clk 0:00:52.2]} 24... d5 {[%clk 0:00:27.4]} 25.
Rc1 {[%clk 0:00:50.6]} 25... e4 {[%clk 0:00:21]} 26. Nxc2 {[%clk 0:00:50.7]}
26... Rc8 {[%clk 0:00:18.4]} 27. Kg2 {[%clk 0:00:33.6]} 27... g6 {[%clk
0:00:14.2]} 28. h5 {[%clk 0:00:30.8]} 28... d4 {[%clk 0:00:12.5]} 29. Qxa7
{[%clk 0:00:18.9]} 29... d2 {[%clk 0:00:10.5]} 30. Rd1 {[%clk 0:00:16.1]} 30...
Qxc2 {[%clk 0:00:10.6]} 31. Qxb7 {[%clk 0:00:16.8]} 31... Rf8 {[%clk 0:00:06]}
32. Rxd2 {[%clk 0:00:13.5]} 32... Qxd2 {[%clk 0:00:06.9]} 33. Qxe4 {[%clk
0:00:14.1]} 33... Qb4 {[%clk 0:00:03.9]} 34. h6 {[%clk 0:00:11.8]} 34... Qd6
{[%clk 0:00:02.9]} 35. Rd3 {[%clk 0:00:08.7]} 35... Rd8 {[%clk 0:00:03.5]} 36.
f4 {[%clk 0:00:08]} 36... f6 {[%clk 0:00:04]} 37. Qb7 {[%clk 0:00:05.9]} 37...
Rd7 {[%clk 0:00:03.1]} 38. Qc8+ {[%clk 0:00:06.2]} 38... Kf7 {[%clk 0:00:03.5]}
39. Qc4+ {[%clk 0:00:04.9]} 39... Ke7 {[%clk 0:00:03.2]} 40. Qc6 {[%clk
0:00:01.4]} 40... Qd5+ {[%clk 0:00:02.2]} 41. Qxd5 {[%clk 0:00:01.1]} 41... Rxd5
{[%clk 0:00:03.1]} 42. b6 {[%clk 0:00:02]} 42... fxg5 {[%clk 0:00:04]} 43. b7
{[%clk 0:00:02.9]} 43... Rb5 {[%clk 0:00:04.5]} 44. Rxd4 {[%clk 0:00:03.1]}
44... Rxb7 {[%clk 0:00:05.1]} 45. fxg5 {[%clk 0:00:04]} 45... Ke6 {[%clk
0:00:05.8]} 46. Rf4 {[%clk 0:00:03.9]} 46... Ke5 {[%clk 0:00:06.3]} 47. Rf6
{[%clk 0:00:04.8]} 47... Rb2+ {[%clk 0:00:06.7]} 48. Kg3 {[%clk 0:00:05.4]}
48... Rxa2 {[%clk 0:00:07.3]} 49. Rf7 {[%clk 0:00:06]} 49... Ra3+ {[%clk
0:00:07.7]} 50. Kg4 {[%clk 0:00:06.6]} 50... Ra4+ {[%clk 0:00:08.3]} 51. Kf3
{[%clk 0:00:07.2]} 51... Ra3+ {[%clk 0:00:08.4]} 52. Kf2 {[%clk 0:00:07.7]}
52... Ra2+ {[%clk 0:00:08.9]} 53. Ke3 {[%clk 0:00:05.8]} 53... Rg2 {[%clk
0:00:08.7]} 54. Rxh7 {[%clk 0:00:04.6]} 54... Rg3+ {[%clk 0:00:09.3]} 55. Kf2
{[%clk 0:00:04.5]} 55... Rxg5 {[%clk 0:00:10]} 56. Kf3 {[%clk 0:00:05.2]} 56...
Rh5 {[%clk 0:00:09.4]} 57. Kg4 {[%clk 0:00:05.8]} 57... Kf6 {[%clk 0:00:10]} 58.
Rh8 {[%clk 0:00:06]} 58... Rh1 {[%clk 0:00:10.2]} 59. Kg3 {[%clk 0:00:04.3]}
59... Kg5 {[%clk 0:00:09.2]} 60. h7 {[%clk 0:00:04.2]} 60... Kh6 {[%clk
0:00:07.6]} 61. Kg2 {[%clk 0:00:02.7]} 61... Rh5 {[%clk 0:00:07.9]} 62. Ra8
{[%clk 0:00:03.2]} 62... Kxh7 {[%clk 0:00:08]} 63. Ra1 {[%clk 0:00:03.9]} 63...
Kh6 {[%clk 0:00:08.3]} 64. Kg1 {[%clk 0:00:04.6]} 64... Rb5 {[%clk 0:00:08]} 65.
Kh1 {[%clk 0:00:04.7]} 65... Kh5 {[%clk 0:00:08.3]} 66. Kg1 {[%clk 0:00:05.3]}
66... Rb4 {[%clk 0:00:08.8]} 67. Kh1 {[%clk 0:00:05.8]} 67... Rg4 {[%clk
0:00:09.2]} 68. Rb1 {[%clk 0:00:04.8]} 68... Rh4+ {[%clk 0:00:09.5]} 69. Kg1
{[%clk 0:00:04.4]} 69... Rg4+ {[%clk 0:00:10.1]} 70. Kh1 {[%clk 0:00:04.2]}
70... Kg5 {[%clk 0:00:10.8]} 71. Rb5+ {[%clk 0:00:03.7]} 71... Kh4 {[%clk
0:00:10.9]} 72. Rb1 {[%clk 0:00:04.1]} 72... Rd4 {[%clk 0:00:11.1]} 73. Ra1
{[%clk 0:00:04.4]} 73... Kg4 {[%clk 0:00:10.9]} 74. Rg1+ {[%clk 0:00:03.7]}
74... Kh5 {[%clk 0:00:10.1]} 75. Ra1 {[%clk 0:00:04.6]} 75... g5 {[%clk
0:00:10]} 76. Kg1 {[%clk 0:00:04.8]} 76... Kh4 {[%clk 0:00:10.6]} 77. Kh1 {[%clk
0:00:05.3]} 77... Rd2 {[%clk 0:00:10.4]} 78. Kg1 {[%clk 0:00:05]} 78... Rd3
{[%clk 0:00:11]} 79. Kh1 {[%clk 0:00:05]} 79... Rg3 {[%clk 0:00:11.7]} 80. Kh2
{[%clk 0:00:04.5]} 80... Rh3+ {[%clk 0:00:11.8]} 81. Kg2 {[%clk 0:00:04.9]}
81... Rb3 {[%clk 0:00:12.6]} 82. Kh2 {[%clk 0:00:05.1]} 82... Rb2+ {[%clk
0:00:12.7]} 83. Kh1 {[%clk 0:00:05.6]} 83... Kg3 {[%clk 0:00:13.4]} 84. Ra3+
{[%clk 0:00:05.8]} 84... Kg4 {[%clk 0:00:14]} 85. Ra1 {[%clk 0:00:06.2]} 85...
Kf4 {[%clk 0:00:14]} 86. Ra4+ {[%clk 0:00:06.3]} 86... Kg3 {[%clk 0:00:14]} 87.
Ra3+ {[%clk 0:00:06.5]} 87... Kh4 {[%clk 0:00:13.8]} 88. Ra1 {[%clk 0:00:06.7]}
88... Rf2 {[%clk 0:00:14.4]} 89. Ra3 {[%clk 0:00:05.2]} 89... Kg4 {[%clk
0:00:14.3]} 90. Rb3 {[%clk 0:00:05.5]} 90... Rf4 {[%clk 0:00:14.8]} 91. Ra3
{[%clk 0:00:05.8]} 91... Rf3 {[%clk 0:00:15.4]} 92. Ra1 {[%clk 0:00:05.7]} 92...
Kh3 {[%clk 0:00:15.7]} 93. Rb1 {[%clk 0:00:05.3]} 93... g4 {[%clk 0:00:16.2]}
94. Ra1 {[%clk 0:00:05.8]} 94... Kg3 {[%clk 0:00:16.8]} 95. Rg1+ {[%clk
0:00:05.6]} 95... Kf2 {[%clk 0:00:15.8]} 96. Rg2+ {[%clk 0:00:04.7]} 96... Kf1
{[%clk 0:00:15.9]} 97. Rg1+ {[%clk 0:00:05]} 97... Kf2 {[%clk 0:00:16.4]} 98.
Rg2+ {[%clk 0:00:05.5]} 98... Kf1 {[%clk 0:00:12.4]} 99. Rg1+ {[%clk 0:00:05.8]}
99... Ke2 {[%clk 0:00:12.9]} 100. Rxg4 {[%clk 0:00:05.4]} 100... Rf1+ {[%clk
0:00:11.5]} 1/2-1/2

[Event "Early-Titled-Tuesday-Blitz-June-18-2024"]
[Site "Chess.com"]
[Date "2024.06.18"]
[Round "3"]
[White "vugarrasulov"]
[Black "suyu28"]
[Result "0-1"]
[WhiteElo "2969"]
[BlackElo "2773"]
[TimeControl "180+1"]
[EndTime "8:33:27 PDT"]
[Termination "suyu28 won on time"]

1. Nf3 {[%clk 0:03:00.9]} 1... Nf6 {[%clk 0:02:59.4]} 2. c4 {[%clk 0:03:00.5]}
2... b6 {[%clk 0:02:57.8]} 3. g3 {[%clk 0:03:00.1]} 3... c5 {[%clk 0:02:54.1]}
4. Bg2 {[%clk 0:02:59.4]} 4... Bb7 {[%clk 0:02:54.3]} 5. O-O {[%clk 0:02:59.5]}
5... e6 {[%clk 0:02:52.1]} 6. d4 {[%clk 0:02:58.7]} 6... cxd4 {[%clk 0:02:51.6]}
7. Qxd4 {[%clk 0:02:59.6]} 7... a6 {[%clk 0:02:47.5]} 8. Nc3 {[%clk 0:02:58.6]}
8... d6 {[%clk 0:02:45.3]} 9. Bg5 {[%clk 0:02:57.9]} 9... Nbd7 {[%clk
0:02:45.1]} 10. Nd2 {[%clk 0:02:48.7]} 10... Bxg2 {[%clk 0:02:43.5]} 11. Kxg2
{[%clk 0:02:49.6]} 11... h6 {[%clk 0:02:34.1]} 12. Bxf6 {[%clk 0:02:47.5]} 12...
Nxf6 {[%clk 0:02:35]} 13. Nde4 {[%clk 0:02:44.1]} 13... Nxe4 {[%clk 0:02:31.3]}
14. Nxe4 {[%clk 0:02:45]} 14... Qc7 {[%clk 0:02:31.4]} 15. Rfd1 {[%clk
0:02:37.4]} 15... Rd8 {[%clk 0:02:28.6]} 16. a4 {[%clk 0:02:24.2]} 16... h5
{[%clk 0:02:26.1]} 17. h4 {[%clk 0:02:20.8]} 17... f6 {[%clk 0:02:12.7]} 18. a5
{[%clk 0:02:15]} 18... bxa5 {[%clk 0:02:11]} 19. Qc3 {[%clk 0:01:58.6]} 19...
Be7 {[%clk 0:02:06.2]} 20. b3 {[%clk 0:01:58.1]} 20... Qb7 {[%clk 0:01:53.6]}
21. Qf3 {[%clk 0:01:52.4]} 21... Qb6 {[%clk 0:01:36.6]} 22. Rd3 {[%clk
0:01:51.5]} 22... f5 {[%clk 0:01:20.1]} 23. Nd2 {[%clk 0:01:41.9]} 23... g6
{[%clk 0:01:12.3]} 24. Qe3 {[%clk 0:01:36]} 24... Qxe3 {[%clk 0:00:54.9]} 25.
Rxe3 {[%clk 0:01:36.9]} 25... Kd7 {[%clk 0:00:51.5]} 26. Rxa5 {[%clk 0:01:36]}
26... Ra8 {[%clk 0:00:52.1]} 27. Rd3 {[%clk 0:01:32]} 27... Kc6 {[%clk
0:00:38.9]} 28. e4 {[%clk 0:01:30.2]} 28... Rhb8 {[%clk 0:00:36.6]} 29. exf5
{[%clk 0:01:28.7]} 29... gxf5 {[%clk 0:00:34]} 30. Nf3 {[%clk 0:01:19.6]} 30...
Bd8 {[%clk 0:00:23.3]} 31. Ra2 {[%clk 0:01:12.2]} 31... Bb6 {[%clk 0:00:23.3]}
32. Ng5 {[%clk 0:01:11.1]} 32... e5 {[%clk 0:00:20.7]} 33. Rad2 {[%clk
0:01:04.7]} 33... Bc5 {[%clk 0:00:20.9]} 34. Ne6 {[%clk 0:01:00.6]} 34... Bb4
{[%clk 0:00:19.6]} 35. Rd1 {[%clk 0:01:00.7]} 35... a5 {[%clk 0:00:13.5]} 36.
Ng7 {[%clk 0:01:00.7]} 36... Rf8 {[%clk 0:00:11.3]} 37. Nxh5 {[%clk 0:00:59.4]}
37... Rf7 {[%clk 0:00:11.5]} 38. Rf3 {[%clk 0:00:41.8]} 38... Rg8 {[%clk
0:00:06.8]} 39. Rd5 {[%clk 0:00:40.1]} 39... Bc5 {[%clk 0:00:05.7]} 40. Kf1
{[%clk 0:00:37.7]} 40... Rg6 {[%clk 0:00:05.5]} 41. Ke2 {[%clk 0:00:32.7]} 41...
Rf8 {[%clk 0:00:05.8]} 42. Kd1 {[%clk 0:00:31.5]} 42... Rf7 {[%clk 0:00:06.3]}
43. Kc2 {[%clk 0:00:31.7]} 43... Rf8 {[%clk 0:00:06.8]} 44. Rd1 {[%clk
0:00:24.4]} 44... Kd7 {[%clk 0:00:06.7]} 45. Rg1 {[%clk 0:00:20]} 45... Ke7
{[%clk 0:00:06.7]} 46. Ra1 {[%clk 0:00:16.3]} 46... Bb4 {[%clk 0:00:06.1]} 47.
Rg1 {[%clk 0:00:09.6]} 47... Rf7 {[%clk 0:00:05]} 48. Kd1 {[%clk 0:00:07.8]}
48... Ke6 {[%clk 0:00:05.2]} 49. g4 {[%clk 0:00:05.2]} 49... fxg4 {[%clk
0:00:03.3]} 50. Rxf7 {[%clk 0:00:05.3]} 50... Kxf7 {[%clk 0:00:04.2]} 51. Ng3
{[%clk 0:00:06.1]} 51... Bc5 {[%clk 0:00:03.8]} 52. Ke2 {[%clk 0:00:06.7]} 52...
Rh6 {[%clk 0:00:03.4]} 53. h5 {[%clk 0:00:06.7]} 53... Ke6 {[%clk 0:00:03.4]}
54. Rh1 {[%clk 0:00:06.4]} 54... Bd4 {[%clk 0:00:03.8]} 55. Ne4 {[%clk 0:00:06]}
55... Kf5 {[%clk 0:00:03.9]} 56. Ng3+ {[%clk 0:00:06.3]} 56... Kg5 {[%clk
0:00:04]} 57. Rd1 {[%clk 0:00:05.1]} 57... Kf4 {[%clk 0:00:03.7]} 58. Rd2 {[%clk
0:00:04.7]} 58... Bc5 {[%clk 0:00:03.9]} 59. Ra2 {[%clk 0:00:03.7]} 59... Bb4
{[%clk 0:00:03.8]} 60. Ra1 {[%clk 0:00:04.3]} 60... Kg5 {[%clk 0:00:04.2]} 61.
Ke3 {[%clk 0:00:03.5]} 61... Rh8 {[%clk 0:00:04.2]} 62. Ke4 {[%clk 0:00:03.7]}
62... Bc5 {[%clk 0:00:04.5]} 63. Kd5 {[%clk 0:00:04]} 63... Bb4 {[%clk
0:00:03.4]} 64. Rd1 {[%clk 0:00:02.9]} 64... Kf4 {[%clk 0:00:03.7]} 65. Rh1
{[%clk 0:00:03]} 65... Kf3 {[%clk 0:00:03.8]} 66. Ne4 {[%clk 0:00:03.6]} 66...
Rh6 {[%clk 0:00:03]} 67. Rh2 {[%clk 0:00:02.9]} 67... Kf4 {[%clk 0:00:03.4]} 68.
Ng3 {[%clk 0:00:02.7]} 68... Kf3 {[%clk 0:00:03.4]} 69. Nf5 {[%clk 0:00:02.9]}
69... Rf6 {[%clk 0:00:02.6]} 70. h6 {[%clk 0:00:02.9]} 70... Rxf5 {[%clk
0:00:03.2]} 71. h7 {[%clk 0:00:03.5]} 71... Rf8 {[%clk 0:00:03.9]} 72. h8=Q
{[%clk 0:00:04]} 72... Rxh8 {[%clk 0:00:04.6]} 73. Rxh8 {[%clk 0:00:04.8]} 73...
Kxf2 {[%clk 0:00:05.5]} 74. Rf8+ {[%clk 0:00:05.4]} 74... Ke3 {[%clk 0:00:05.9]}
75. Rg8 {[%clk 0:00:05.8]} 75... Kf3 {[%clk 0:00:06.4]} 76. Rf8+ {[%clk
0:00:06.3]} 76... Kg3 {[%clk 0:00:06.9]} 77. Ke4 {[%clk 0:00:05.4]} 77... Bc5
{[%clk 0:00:07.4]} 78. Rg8 {[%clk 0:00:05]} 78... Kh3 {[%clk 0:00:06.9]} 79.
Rh8+ {[%clk 0:00:04.4]} 79... Kg3 {[%clk 0:00:06.5]} 80. Rg8 {[%clk 0:00:04.6]}
80... Kh3 {[%clk 0:00:06.5]} 81. Rg6 {[%clk 0:00:05]} 81... Bb4 {[%clk
0:00:05.7]} 82. Ke3 {[%clk 0:00:03.9]} 82... Bc5+ {[%clk 0:00:05.8]} 83. Ke2
{[%clk 0:00:04.6]} 83... Kg3 {[%clk 0:00:06.1]} 84. Rg8 {[%clk 0:00:04.5]} 84...
Kf4 {[%clk 0:00:06.6]} 85. Rf8+ {[%clk 0:00:04.9]} 85... Ke4 {[%clk 0:00:07]}
86. Rf7 {[%clk 0:00:04.6]} 86... g3 {[%clk 0:00:07]} 87. Rg7 {[%clk 0:00:05]}
87... Bf2 {[%clk 0:00:07.2]} 88. Rg4+ {[%clk 0:00:05.4]} 88... Kf5 {[%clk
0:00:07.4]} 89. Kf3 {[%clk 0:00:04.9]} 89... Ke6 {[%clk 0:00:06.8]} 90. Rg6+
{[%clk 0:00:04.4]} 90... Kd7 {[%clk 0:00:07.3]} 91. Ke4 {[%clk 0:00:04.5]} 91...
Kc6 {[%clk 0:00:07.6]} 92. Kf3 {[%clk 0:00:04]} 92... Kc5 {[%clk 0:00:08]} 93.
Re6 {[%clk 0:00:04.2]} 93... Kc6 {[%clk 0:00:08.2]} 94. Rh6 {[%clk 0:00:04.1]}
94... Kc5 {[%clk 0:00:08.5]} 95. Rg6 {[%clk 0:00:04.8]} 95... Be1 {[%clk
0:00:06.1]} 96. Rg8 {[%clk 0:00:04.8]} 96... Kb4 {[%clk 0:00:05.9]} 97. Rb8+
{[%clk 0:00:05]} 97... Kc3 {[%clk 0:00:06.4]} 98. Rb5 {[%clk 0:00:05.1]} 98...
Kc2 {[%clk 0:00:06.2]} 99. Rb6 {[%clk 0:00:03.8]} 99... Kb2 {[%clk 0:00:06.3]}
100. Rxd6 {[%clk 0:00:03.3]} 100... Kxb3 {[%clk 0:00:06.3]} 101. c5 {[%clk
0:00:04]} 101... Bb4 {[%clk 0:00:05.9]} 102. Rb6 {[%clk 0:00:03.7]} 102... Kc4
{[%clk 0:00:06]} 103. c6 {[%clk 0:00:04.2]} 103... Bd6 {[%clk 0:00:06.4]} 104.
Rb7 {[%clk 0:00:04.7]} 104... a4 {[%clk 0:00:05.8]} 105. Rd7 {[%clk 0:00:03.3]}
105... Bb8 {[%clk 0:00:04.9]} 106. Rd8 {[%clk 0:00:03.2]} 106... Bc7 {[%clk
0:00:05.4]} 107. Rc8 {[%clk 0:00:03.8]} 107... Bd6 {[%clk 0:00:05.8]} 108. Ke4
{[%clk 0:00:03.9]} 108... g2 {[%clk 0:00:05.8]} 109. Rg8 {[%clk 0:00:03.8]}
109... Kc5 {[%clk 0:00:05.9]} 110. Rxg2 {[%clk 0:00:03.8]} 110... Kxc6 {[%clk
0:00:06.4]} 111. Rd2 {[%clk 0:00:03.7]} 111... a3 {[%clk 0:00:06.3]} 112. Kd3
{[%clk 0:00:04.2]} 112... Kd5 {[%clk 0:00:06.6]} 113. Kc3+ {[%clk 0:00:03.9]}
113... Ke6 {[%clk 0:00:07.2]} 114. Re2 {[%clk 0:00:04.1]} 114... Kd5 {[%clk
0:00:07.4]} 115. Kd3 {[%clk 0:00:04.3]} 115... Bc5 {[%clk 0:00:07.6]} 116. Ra2
{[%clk 0:00:03.3]} 116... e4+ {[%clk 0:00:08]} 117. Kc3 {[%clk 0:00:04]} 117...
Bd4+ {[%clk 0:00:08]} 118. Kd2 {[%clk 0:00:03.4]} 118... Bb2 {[%clk 0:00:08.9]}
119. Ke3 {[%clk 0:00:03.6]} 119... Ke5 {[%clk 0:00:09.4]} 120. Ke2 {[%clk
0:00:04.1]} 120... Kd4 {[%clk 0:00:10.3]} 121. Kd2 {[%clk 0:00:04.7]} 121... e3+
{[%clk 0:00:10.9]} 122. Ke2 {[%clk 0:00:04.7]} 122... Ke4 {[%clk 0:00:11.5]}
123. Ke1 {[%clk 0:00:03.6]} 123... Kd3 {[%clk 0:00:11.9]} 124. Kd1 {[%clk
0:00:01.7]} 124... e2+ {[%clk 0:00:11.9]} 125. Ke1 {[%clk 0:00:02.6]} 125...
Bc3+ {[%clk 0:00:12.7]} 126. Kf2 {[%clk 0:00:03]} 126... e1=Q+ {[%clk
0:00:13.6]} 127. Kf3 {[%clk 0:00:03.7]} 127... Qe4+ {[%clk 0:00:13.7]} 128. Kf2
{[%clk 0:00:03.8]} 128... Bb2 {[%clk 0:00:13.8]} 129. Ra1 {[%clk 0:00:02.8]}
129... Bxa1 {[%clk 0:00:13.7]} 0-1

[Event "Early-Titled-Tuesday-Blitz-June-18-2024"]
[Site "Chess.com"]
[Date "2024.06.18"]
[Round "4"]
[White "JAN2404"]
[Black "Philosopherrr"]
[Result "1-0"]
[WhiteElo "2052"]
[BlackElo "2433"]
[TimeControl "180+1"]
[EndTime "8:35:01 PDT"]
[Termination "JAN2404 won by resignation"]

1. e4 {[%clk 0:03:00.9]} 1... e5 {[%clk 0:02:59.5]} 2. Nc3 {[%clk 0:03:00.7]}
2... Nc6 {[%clk 0:03:00.1]} 3. Bc4 {[%clk 0:03:00.9]} 3... Bc5 {[%clk
0:02:58.6]} 4. Qg4 {[%clk 0:03:00.4]} 4... Qf6 {[%clk 0:02:57.5]} 5. Nd5 {[%clk
0:02:56.8]} 5... Qg6 {[%clk 0:02:57.3]} 6. Qxg6 {[%clk 0:02:53.9]} 6... hxg6
{[%clk 0:02:58.2]} 7. Nxc7+ {[%clk 0:02:54.1]} 7... Kd8 {[%clk 0:02:58.2]} 8.
Nxa8 {[%clk 0:02:54.4]} 8... Nf6 {[%clk 0:02:58.1]} 9. d3 {[%clk 0:02:47.1]}
9... d6 {[%clk 0:02:56.5]} 10. Be3 {[%clk 0:02:41.6]} 10... a6 {[%clk 0:02:56]}
11. Bxc5 {[%clk 0:02:39]} 11... dxc5 {[%clk 0:02:55.4]} 12. Nb6 {[%clk
0:02:39.2]} 1-0